bitfinex-derivatives/quotes_ETHF0:USTF0_20250831
["timestamp","ask_amount","ask_price","bid_price","bid_amount"]
[1756672311419,3.2078,4461.9,4461.6,0.3013]
[1756672315132,3.2078,4461.9,4461.3,0.105]
[1756672315330,3.2078,4461.9,4461.4,0.3013]
[1756672315521,3.2078,4461.9,4461.5,0.3013]
[1756672315718,3.2078,4461.9,4461.6,0.2035]
[1756672315922,3.2078,4461.9,4461.3,0.105]
[1756672316128,3.2078,4461.9,4461.4,0.5048]
[1756672316322,3.2078,4461.9,4461.3,0.105]
[1756672316631,3.2078,4461.9,4461.8,0.5048]
[1756672316825,4.00227114,4465.5,4461.3,0.32913]
[1756672316826,3.2078,4462.5,4461.9,0.3013]
[1756672320535,3.2078,4462.5,4462.4,0.2035]
[1756672320838,3.2078,4462.5,4462.4,0.5048]
[1756672323336,3.2078,4463.0,4462.9,0.5048]
[1756672324642,3.2078,4463.0,4462.9,0.3013]
[1756672327536,3.2078,4463.0,4462.8,0.226]
[1756672327738,3.2078,4463.0,4462.8,0.225]
[1756672328042,3.43187,4463.0,4462.4,0.225]
[1756672328831,3.2078,4463.0,4462.4,0.225]
[1756672329042,3.2078,4463.0,4462.4,0.5204]
[1756672329246,3.2078,4463.0,4462.5,0.1999]
[1756672329434,3.2078,4463.0,4462.4,0.5204]
[1756672329630,3.2078,4463.0,4462.4,0.7203]
[1756672329835,3.2078,4463.0,4462.5,0.2954]
[1756672330447,3.2078,4463.0,4462.6,0.2954]
[1756672330630,3.2078,4463.0,4462.4,0.225]
[1756672330834,3.2078,4463.0,4462.5,0.2954]
[1756672331036,3.2078,4463.0,4462.5,0.1999]
[1756672331339,3.2078,4463.0,4462.4,0.225]
[1756672331544,3.2078,4463.0,4462.6,0.4953]
[1756672331742,3.2078,4463.0,4462.4,0.225]
[1756672331743,3.2078,4463.0,4462.7,0.2954]
[1756672331943,3.2078,4463.0,4462.8,0.2954]
[1756672332243,3.2078,4463.0,4462.5,0.1999]
[1756672332444,3.2078,4463.0,4462.7,0.2954]
[1756672332644,3.2078,4463.0,4462.4,0.225]
[1756672332944,3.2078,4463.0,4462.5,0.2954]
[1756672333246,3.2078,4463.0,4462.4,0.4249]
[1756672333543,3.2078,4463.0,4462.5,0.2954]
[1756672334538,3.2078,4463.0,4462.6,0.2954]
[1756672334743,3.2078,4463.0,4462.9,0.1999]
[1756672334941,3.2078,4463.0,4462.9,0.4953]
[1756672338747,3.2078,4463.5,4463.0,0.2954]
[1756672339047,3.2078,4463.5,4463.1,0.2954]
[1756672339246,3.2078,4463.5,4463.2,0.1999]
[1756672339452,3.2078,4463.5,4462.5,0.22407]
[1756672339749,3.2078,4463.5,4462.7,0.2954]
[1756672340346,3.2078,4463.5,4462.7,0.4953]
[1756672340541,3.2078,4463.5,4462.8,0.2954]
[1756672340849,3.2078,4463.5,4462.8,0.4953]
[1756672343155,3.2078,4463.5,4462.9,0.225]
[1756672343757,3.2078,4463.5,4462.8,0.4953]
[1756672343949,3.2078,4463.5,4462.8,0.6143]
[1756672345250,3.2078,4463.5,4462.9,0.4953]
[1756672345549,3.2078,4463.5,4463.0,0.2954]
[1756672345753,3.2078,4463.5,4463.0,0.1999]
[1756672346055,3.2078,4463.5,4463.2,0.1999]
[1756672346354,3.2078,4463.5,4462.9,0.2954]
[1756672348357,3.2078,4463.5,4462.9,0.4953]
[1756672348556,3.2078,4463.5,4462.8,0.225]
[1756672348752,3.2078,4463.5,4462.9,0.4953]
[1756672348955,3.2078,4463.5,4463.1,0.2954]
[1756672349256,3.2078,4463.5,4462.9,0.1999]
[1756672349456,3.2078,4463.5,4463.0,0.4953]
[1756672349651,3.2078,4463.5,4463.0,0.1999]
[1756672349860,3.2078,4463.5,4463.2,0.2954]
[1756672350052,3.2078,4463.5,4462.8,0.225]
[1756672350252,3.2078,4463.5,4462.9,0.2954]
[1756672351059,3.2078,4463.5,4462.3,0.2954]
[1756672351259,3.2078,4463.5,4462.5,0.1999]
[1756672351554,0.62019125,4463.4,4462.7,0.4953]
[1756672351747,3.2078,4463.5,4462.8,0.2954]
[1756672351950,0.62012769,4463.4,4462.8,0.2954]
[1756672352150,3.2078,4463.5,4462.8,0.2954]
[1756672352350,0.6201279,4463.4,4462.8,0.4953]
[1756672352556,3.2078,4463.5,4462.8,0.4953]
[1756672352753,0.62020379,4463.4,4462.9,0.225]
[1756672352948,3.2078,4463.5,4462.9,0.225]
[1756672353154,0.62020265,4463.4,4463.0,0.2954]
[1756672353459,3.2078,4463.5,4463.0,0.2954]
[1756672353658,0.62018697,4463.4,4463.0,0.2954]
[1756672353859,3.2078,4463.5,4463.0,0.1999]
[1756672354158,0.62018642,4463.4,4462.9,0.225]
[1756672354359,3.2078,4463.5,4463.0,0.2954]
[1756672354555,0.62018041,4463.4,4463.0,0.1999]
[1756672354755,3.2078,4463.5,4462.9,0.225]
[1756672354955,0.62017989,4463.4,4463.0,0.1999]
[1756672355153,3.2078,4463.5,4462.9,0.4249]
[1756672355353,0.62017992,4463.4,4463.0,0.2954]
[1756672355557,3.2078,4463.5,4463.0,0.2954]
[1756672355758,0.6201652,4463.4,4463.0,0.1999]
[1756672355957,3.2078,4463.5,4463.0,0.1999]
[1756672356157,0.62015654,4463.4,4463.0,0.2954]
[1756672356359,3.2078,4463.5,4463.0,0.4953]
[1756672356559,0.62015168,4463.4,4463.2,0.2954]
[1756672356754,3.2078,4463.5,4463.0,0.2954]
[1756672356954,0.62015538,4463.4,4463.0,0.1999]
[1756672357154,3.2078,4463.5,4462.9,0.225]
[1756672357356,0.62014927,4463.4,4463.1,0.2954]
[1756672357555,3.2078,4463.5,4463.4,0.2954]
[1756672357854,3.82794837,4463.5,4463.4,0.4953]
[1756672358955,3.82794837,4463.5,4463.0,0.2774]
[1756672359255,3.2078,4463.5,4462.9,0.4238]
[1756672359459,3.2078,4463.5,4463.0,0.2774]
[1756672359661,3.2078,4463.5,4462.9,0.225]
[1756672359859,3.2078,4463.5,4463.0,0.1988]
[1756672360055,3.2078,4463.5,4463.2,0.2774]
[1756672360256,3.2078,4463.5,4463.0,0.2774]
[1756672360550,3.2078,4463.5,4463.1,0.2774]
[1756672360757,3.2078,4463.5,4463.2,0.2774]
[1756672360958,3.2078,4463.5,4463.0,0.2774]
[1756672361355,3.2078,4463.5,4463.0,0.1988]
[1756672361554,3.2078,4463.5,4463.1,0.2774]
[1756672361750,3.2078,4463.5,4462.9,0.2774]
[1756672362159,3.2078,4463.5,4462.9,0.4762]
[1756672362357,0.62036397,4463.4,4462.9,0.1988]
[1756672362561,3.2078,4463.5,4462.9,0.2774]
[1756672362754,0.62032105,4463.4,4462.9,0.2774]
[1756672362957,3.2078,4463.5,4462.9,0.4762]
[1756672363262,0.6203213,4463.4,4463.0,0.2774]
[1756672363459,3.2078,4463.5,4462.9,0.2774]
[1756672363663,0.6204295,4463.4,4463.0,0.2774]
[1756672363962,3.2078,4463.5,4462.9,0.2774]
[1756672364160,0.62032356,4463.4,4462.9,0.1988]
[1756672364361,3.2078,4463.5,4462.9,0.2774]
[1756672364552,0.62048688,4463.4,4462.8,0.3328]
[1756672364751,3.2078,4463.5,4462.9,0.2774]
[1756672364951,0.62048687,4463.4,4462.9,0.1988]
[1756672365156,3.2078,4463.5,4462.8,0.3328]
[1756672365363,0.62048687,4463.4,4463.0,0.2774]
[1756672365564,3.2078,4463.5,4462.9,0.2774]
[1756672365762,0.62057529,4463.4,4462.9,0.2774]
[1756672366064,3.2078,4463.5,4462.9,0.4762]
[1756672366263,0.62057526,4463.4,4463.0,0.2774]
[1756672366466,0.62057526,4463.3,4462.9,0.2774]
[1756672366652,3.2078,4463.5,4463.0,0.2774]
[1756672366859,0.62058952,4463.4,4462.8,0.3328]
[1756672367060,0.62058952,4463.3,4462.8,0.3328]
[1756672367358,3.2078,4463.5,4462.9,0.2774]
[1756672367555,0.62060678,4463.4,4462.8,0.134]
[1756672367765,0.62060678,4463.3,4462.2,3.2078]
[1756672368063,3.2078,4463.5,4462.4,0.2774]
[1756672368263,0.62060679,4463.4,4462.4,0.2774]
[1756672368464,0.62060679,4463.3,4462.5,0.22407]
[1756672368665,3.2078,4463.5,4462.6,0.2774]
[1756672368866,0.62060696,4463.4,4462.7,0.2774]
[1756672369065,0.62060696,4463.3,4462.7,0.22406]
[1756672369266,3.2078,4463.5,4462.4,0.2774]
[1756672369568,0.62060431,4463.4,4462.5,0.2774]
[1756672369866,0.62060431,4463.3,4462.6,0.2774]
[1756672370168,3.2078,4463.5,4462.7,0.2774]
[1756672370464,0.62060431,4463.4,4462.7,0.2774]
[1756672370664,0.62060431,4463.3,4462.7,0.2774]
[1756672370865,3.2078,4463.5,4462.7,0.2774]
[1756672371063,0.62060203,4463.4,4462.7,0.2774]
[1756672371261,0.62060203,4463.3,4462.7,0.2774]
[1756672371463,3.2078,4463.5,4462.7,0.2774]
[1756672371668,0.62060243,4463.4,4462.7,0.1988]
[1756672371967,0.62060243,4463.3,4462.8,0.1988]
[1756672372267,3.2078,4463.5,4462.9,0.4762]
[1756672372465,0.62060335,4463.4,4463.0,0.2774]
[1756672372665,0.62060335,4463.3,4462.6,0.2774]
[1756672372965,3.2078,4463.5,4462.6,0.2774]
[1756672373166,0.62058332,4463.4,4462.6,0.22406]
[1756672373366,0.62058332,4463.3,4462.7,0.2774]
[1756672373567,3.2078,4463.5,4462.7,0.2774]
[1756672373867,0.62054567,4463.4,4462.7,0.2774]
[1756672374063,0.62054567,4463.3,4462.7,0.2774]
[1756672374264,3.2078,4463.5,4462.7,0.2774]
[1756672374470,0.62075309,4463.4,4462.8,0.225]
[1756672374668,0.62075309,4463.3,4462.8,0.225]
[1756672374970,3.2078,4463.5,4462.9,0.4762]
[1756672375168,0.62075771,4463.4,4463.0,0.2774]
[1756672375464,0.62075771,4463.3,4463.0,0.2774]
[1756672375669,3.2078,4463.5,4463.0,0.2774]
[1756672375870,0.62076037,4463.4,4462.9,0.4238]
[1756672376169,0.62076037,4463.3,4463.0,0.2774]
[1756672376371,3.2078,4463.5,4463.0,0.2774]
[1756672376670,0.62076332,4463.4,4462.2,3.2078]
[1756672376971,0.62076332,4463.3,4462.4,0.2774]
[1756672377171,3.2078,4463.5,4462.4,0.2774]
[1756672377372,0.62076347,4463.4,4462.6,0.2774]
[1756672377575,0.62076347,4463.3,4462.6,0.2774]
[1756672377866,3.2078,4463.5,4462.7,0.22406]
[1756672378070,0.62076598,4463.4,4462.9,0.2774]
[1756672378374,0.62076598,4463.3,4462.6,0.2774]
[1756672378670,3.2078,4463.5,4462.6,0.22406]
[1756672378972,0.62076621,4463.4,4462.7,0.22406]
[1756672379170,0.62076621,4463.3,4462.6,0.22406]
[1756672379474,3.2078,4463.5,4462.7,0.2774]
[1756672379674,0.62076703,4463.4,4462.8,0.1988]
[1756672379970,0.62076703,4463.3,4463.0,0.2774]
[1756672380166,3.2078,4463.5,4463.1,0.2774]
[1756672380368,3.2078,4463.5,4462.6,0.22406]
[1756672380369,0.84479644,4463.4,4462.6,0.2774]
[1756672380667,3.2078,4462.8,4462.3,0.225]
[1756672380872,3.2078,4462.8,4462.4,0.2774]
[1756672381268,3.2078,4462.8,4462.3,0.5024]
[1756672381470,3.2078,4462.8,4462.3,0.225]
[1756672381665,3.2078,4462.8,4462.4,0.2774]
[1756672381871,3.2078,4462.8,4462.5,0.1988]
[1756672382065,3.2078,4462.8,4462.6,0.2774]
[1756672382261,3.2078,4462.8,4462.3,0.225]
[1756672382262,3.2078,4462.8,4462.4,0.2774]
[1756672382474,3.2078,4462.8,4462.3,0.4238]
[1756672382671,3.2078,4462.8,4462.4,0.2774]
[1756672385775,3.2078,4462.8,4462.3,0.225]
[1756672385979,3.2078,4462.8,4462.4,0.2774]
[1756672386378,3.2078,4462.8,4462.7,0.4762]
[1756672391878,3.2078,4463.3,4462.7,0.1988]
[1756672392075,3.2078,4463.3,4463.2,0.4926]
[1756672392384,3.2078,4463.3,4463.2,0.2988]
[1756672393383,3.2078,4463.3,4463.2,0.4926]
[1756672393883,3.2078,4463.3,4463.2,0.2988]
[1756672400275,3.2078,4463.3,4462.9,0.2988]
[1756672400687,3.2078,4463.3,4462.8,0.4188]
[1756672400889,3.2078,4463.3,4462.9,0.2988]
[1756672401283,3.2078,4463.3,4462.8,0.225]
[1756672401486,3.2078,4463.3,4462.9,0.2988]
[1756672401882,3.2078,4463.3,4462.8,0.4188]
[1756672402082,3.2078,4463.3,4462.9,0.2988]
[1756672403386,3.2078,4463.3,4462.7,0.2988]
[1756672403685,3.2078,4463.3,4462.8,0.4926]
[1756672403886,3.2078,4463.3,4462.9,0.1938]
[1756672404187,3.2078,4463.3,4462.5,0.2988]
[1756672406592,3.2078,4463.3,4462.6,0.4926]
[1756672406992,3.2078,4463.3,4462.6,0.2988]
[1756672407384,3.2078,4463.3,4462.6,0.4926]
[1756672407693,3.2078,4463.3,4462.7,0.2988]
[1756672407989,3.2078,4463.3,4462.7,0.4926]
[1756672408293,3.2078,4463.3,4462.3,0.225]
[1756672408493,3.2078,4463.3,4462.4,0.2988]
[1756672412088,3.2078,4463.3,4463.2,0.4926]
[1756672412288,3.2078,4463.3,4463.2,0.2988]
[1756672412598,3.2078,4463.3,4462.3,0.225]
[1756672412796,3.2078,4463.3,4462.5,0.2988]
[1756672413396,3.2078,4463.3,4462.6,0.7176]
[1756672413989,3.2078,4463.3,4462.6,0.4188]
[1756672414191,3.2078,4463.3,4462.7,0.4926]
[1756672416303,3.2078,4463.3,4462.7,0.1938]
[1756672416496,3.2078,4463.3,4462.8,0.2988]
[1756672416688,3.2078,4463.3,4462.6,0.225]
[1756672416689,3.2078,4463.3,4463.2,0.1938]
[1756672416893,3.2078,4463.3,4462.6,0.225]
[1756672416894,3.2078,4463.3,4462.7,0.2988]
[1756672417097,3.2078,4463.3,4462.7,0.5238]
[1756672417288,3.2078,4463.3,4462.7,0.4188]
[1756672417491,3.2078,4463.3,4462.8,0.4926]
[1756672417692,3.2078,4463.3,4463.0,0.2988]
[1756672417899,3.2078,4463.3,4462.8,0.2028]
[1756672418101,3.2078,4463.3,4462.7,0.225]
[1756672418288,3.2078,4463.3,4462.8,0.2028]
[1756672418500,3.2078,4463.3,4462.7,0.225]
[1756672418693,3.2078,4463.3,4462.8,0.4884]
[1756672418894,3.2078,4463.3,4463.0,0.2856]
[1756672419095,3.2078,4463.3,4462.8,0.2028]
[1756672419297,3.2078,4463.3,4463.0,0.2856]
[1756672419498,3.2078,4463.3,4462.8,0.2028]
[1756672419699,3.2078,4463.3,4462.9,0.2028]
[1756672419899,3.2078,4463.3,4462.8,0.4884]
[1756672420092,3.2078,4463.3,4462.9,0.2856]
[1756672420288,3.2078,4463.3,4462.8,0.4884]
[1756672420498,3.2078,4463.3,4462.9,0.2028]
[1756672420698,3.2078,4463.3,4463.0,0.2856]
[1756672420898,3.2078,4463.3,4462.8,0.4884]
[1756672421099,3.2078,4463.3,4462.9,0.2028]
[1756672421296,3.2078,4463.3,4462.8,0.2856]
[1756672421500,0.62069578,4463.2,4462.8,0.2028]
[1756672421797,3.2078,4463.3,4463.0,0.4884]
[1756672421997,0.62069572,4463.2,4462.7,0.225]
[1756672422190,3.2078,4463.3,4462.8,0.2856]
[1756672422395,0.62068252,4463.2,4462.8,0.2856]
[1756672422591,3.2078,4463.3,4462.8,0.2028]
[1756672422791,0.62068539,4463.2,4463.0,0.2856]
[1756672422996,3.2078,4463.3,4462.8,0.2028]
[1756672423301,0.62066209,4463.2,4463.0,0.2856]
[1756672423506,3.2078,4463.3,4462.8,0.2028]
[1756672423690,0.62066959,4463.2,4462.7,0.225]
[1756672423895,3.2078,4463.3,4462.8,0.2028]
[1756672424201,0.62039363,4463.2,4463.0,0.2028]
[1756672424402,3.2078,4463.3,4462.8,0.4884]
[1756672424700,0.6204035,4463.2,4462.8,0.2856]
[1756672424901,3.2078,4463.3,4462.8,0.2028]
[1756672425090,0.62040392,4463.2,4462.8,0.2856]
[1756672425293,3.2078,4463.3,4462.8,0.4884]
[1756672425493,0.62041182,4463.2,4462.7,0.4278]
[1756672425792,3.2078,4463.3,4462.8,0.4884]
[1756672426006,0.62042352,4463.2,4462.7,0.4278]
[1756672426198,3.2078,4463.3,4462.8,0.2856]
[1756672426397,0.62042266,4463.2,4462.8,0.2028]
[1756672426598,3.2078,4463.3,4462.8,0.2856]
[1756672426797,0.62042604,4463.2,4462.8,0.4884]
[1756672426994,3.2078,4463.3,4462.9,0.2856]
[1756672427194,0.62042538,4463.2,4462.8,0.2856]
[1756672427391,3.2078,4463.3,4462.7,0.225]
[1756672427595,0.62043086,4463.2,4462.8,0.2856]
[1756672427794,3.2078,4463.3,4462.8,0.2028]
[1756672427996,0.62042234,4463.2,4463.0,0.2856]
[1756672428200,3.2078,4463.3,4462.8,0.2028]
[1756672428397,0.62042223,4463.2,4463.0,0.2856]
[1756672428592,3.2078,4463.3,4462.8,0.2028]
[1756672428798,0.62042835,4463.2,4462.9,0.4884]
[1756672428998,3.2078,4463.3,4463.0,0.2028]
[1756672429298,0.62042689,4463.2,4463.1,0.2856]
[1756672430704,3.2078,4463.3,4463.1,0.2856]
[1756672431003,0.62043291,4463.2,4463.1,0.2856]
[1756672434005,0.62043291,4463.2,4463.1,0.4884]
[1756672435905,0.62043291,4463.2,4463.1,0.2856]
[1756672437903,0.62043291,4463.2,4462.1,3.61116]
[1756672438110,3.2078,4463.3,4462.3,0.2856]
[1756672438302,0.62034133,4463.2,4462.3,0.2856]
[1756672438610,3.2078,4463.3,4462.2,0.44908]
[1756672438611,0.62034133,4463.1,4462.6,0.2856]
[1756672438905,3.2078,4463.3,4462.7,0.2856]
[1756672439108,0.62033111,4463.2,4462.3,0.22408]
[1756672439302,0.62033111,4463.1,4462.5,0.2856]
[1756672439504,3.2078,4463.3,4462.5,0.2856]
[1756672439704,0.62032361,4463.2,4462.5,0.2856]
[1756672439904,0.62032361,4463.1,4462.6,0.4884]
[1756672440208,3.2078,4463.3,4462.7,0.2856]
[1756672440508,3.2078,4462.8,4462.2,0.7134]
[1756672440710,0.62034776,4462.7,4462.3,0.2856]
[1756672440903,0.62034776,4462.6,4462.3,0.2856]
[1756672441109,3.2078,4462.8,4462.4,0.2856]
[1756672441305,0.84403915,4462.7,4461.7,0.2856]
[1756672441511,0.84403915,4462.7,4461.0,3.2078]
[1756672441512,3.2078,4462.1,4461.6,0.225]
[1756672441807,3.2078,4462.1,4461.9,32.5556]
[1756672442205,3.2078,4462.1,4461.9,32.27]
[1756672442803,3.2078,4462.1,4461.9,0.2856]
[1756672443305,0.22411,4462.0,4461.1,0.2856]
[1756672443510,3.2078,4462.1,4461.4,0.2856]
[1756672443712,0.61916081,4462.0,4461.4,0.2856]
[1756672443913,3.2078,4461.6,4461.4,0.2856]
[1756672444210,3.2078,4461.6,4461.2,0.2856]
[1756672444511,3.2078,4461.6,4460.5,32.272]
[1756672444707,3.2078,4461.6,4460.7,0.2856]
[1756672447415,3.2078,4461.6,4460.8,0.4884]
[1756672447618,3.2078,4461.6,4460.8,0.7134]
[1756672447906,3.2078,4461.1,4460.9,0.2856]
[1756672448107,3.2078,4461.1,4460.9,0.1919]
[1756672448308,3.2078,4461.1,4461.0,0.2848]
[1756672448503,3.2078,4461.1,4460.6,0.2848]
[1756672448703,3.2078,4461.1,4460.3,0.2848]
[1756672449012,3.2078,4461.1,4459.8,3.2078]
[1756672449013,3.2078,4460.4,4460.2,0.225]
[1756672449214,3.2078,4460.4,4459.9,0.4169]
[1756672449414,3.2078,4460.4,4460.0,0.4767]
[1756672449713,3.2078,4460.4,4459.9,0.4169]
[1756672450011,3.2078,4460.4,4460.0,0.2848]
[1756672450408,3.2078,4460.4,4459.9,0.225]
[1756672450608,0.112,4460.3,4459.9,0.225]
[1756672451111,0.112,4460.3,4459.9,0.5098]
[1756672451611,0.112,4460.3,4460.0,0.2848]
[1756672453310,0.112,4460.3,4459.4,0.4767]
[1756672453512,3.2078,4459.6,4459.2,0.2848]
[1756672453812,3.2078,4459.6,4458.8,3.4328]
[1756672454014,3.2078,4459.6,4459.1,0.2848]
[1756672454311,3.2078,4459.6,4459.1,0.1919]
[1756672454507,3.2078,4459.6,4458.8,3.4328]
[1756672454706,3.2078,4459.6,4459.2,0.1919]
[1756672454908,3.2078,4459.6,4459.3,0.1919]
[1756672455109,3.2078,4459.6,4459.1,0.4767]
[1756672455306,3.2078,4459.6,4459.2,0.2848]
[1756672455615,3.2078,4459.6,4459.3,0.1919]
[1756672455816,3.2078,4459.6,4459.1,0.4767]
[1756672456015,3.2078,4459.6,4459.2,0.2848]
[1756672456216,3.2078,4459.6,4459.2,0.1919]
[1756672456415,3.2078,4459.6,4459.1,0.1919]
[1756672456612,3.2078,4459.6,4459.3,0.2848]
[1756672456816,3.2078,4459.6,4459.1,0.1919]
[1756672457016,3.2078,4459.6,4459.2,0.1919]
[1756672457217,3.2078,4459.6,4459.2,0.2848]
[1756672457518,3.2078,4459.6,4458.9,0.2848]
[1756672457816,3.2078,4459.0,4458.9,0.4767]
[1756672460916,3.2078,4459.0,4457.9,0.2848]
[1756672461112,3.2078,4459.0,4458.1,0.2848]
[1756672463513,3.2078,4459.0,4458.2,0.2848]
[1756672464622,0.225,4459.3,4458.2,0.4767]
[1756672464623,3.2078,4458.5,4458.2,0.4767]
[1756672464815,3.2078,4458.5,4458.2,0.1919]
[1756672465014,3.2078,4458.5,4458.1,0.4169]
[1756672465209,3.2078,4458.5,4458.2,0.2848]
[1756672465814,3.2078,4458.5,4458.2,0.1919]
[1756672466009,3.2078,4458.5,4458.3,0.2848]
[1756672466824,3.2078,4458.5,4458.2,0.2848]
[1756672467820,3.2078,4458.5,4458.2,0.1919]
[1756672468018,3.2078,4458.5,4458.4,0.4767]
[1756672472233,3.2078,4458.5,4458.0,0.2848]
[1756672472930,3.2078,4458.5,4458.0,0.1919]
[1756672473430,3.2078,4458.5,4458.1,0.2848]
[1756672473735,3.2078,4458.5,4457.9,0.225]
[1756672473929,3.2078,4458.5,4458.0,0.4767]
[1756672474130,3.2078,4458.5,4457.9,0.225]
[1756672474330,3.2078,4458.5,4458.0,0.1919]
[1756672474532,3.2078,4458.5,4458.1,0.1919]
[1756672474732,3.2078,4458.5,4458.0,0.4767]
[1756672475037,3.2078,4458.5,4457.9,0.225]
[1756672475038,3.2078,4458.5,4458.1,0.1919]
[1756672475331,3.2078,4458.5,4458.0,0.2848]
[1756672475539,3.2078,4458.5,4458.0,0.1919]
[1756672475741,3.2078,4458.5,4458.2,0.4767]
[1756672475939,3.2078,4458.5,4457.9,0.225]
[1756672476140,0.61620897,4458.4,4458.0,0.4767]
[1756672476335,3.2078,4458.5,4458.1,0.2848]
[1756672476531,0.61620897,4458.4,4458.1,0.1919]
[1756672476736,3.2078,4458.5,4458.1,0.2848]
[1756672476933,0.84120915,4458.4,4457.7,0.2848]
[1756672477135,3.2078,4457.9,4457.4,0.225]
[1756672477331,0.61620915,4457.8,4456.8,0.2848]
[1756672477536,3.2078,4457.3,4456.8,0.2848]
[1756672478236,0.61656013,4457.2,4457.1,0.4917]
[1756672494150,0.61656013,4457.2,4457.1,0.71605999]
[1756672494452,0.1121,4457.4,4457.3,0.9057]
[1756672494846,0.1121,4457.4,4457.3,1.13005]
[1756672495751,0.1121,4457.4,4457.3,0.9057]
[1756672496354,0.1121,4457.4,4457.3,4.1135]
[1756672498657,3.2078,4458.4,4457.6,0.40376]
[1756672498954,3.2078,4458.4,4457.8,0.2998]
[1756672499856,0.1121,4458.3,4458.2,0.5019]
[1756672503354,0.1121,4458.3,4458.2,0.90562]
[1756672503660,0.1121,4458.3,4458.2,0.5019]
[1756672503961,0.1121,4458.3,4458.2,0.90562]
[1756672504257,0.1121,4458.3,4458.2,0.5019]
[1756672504960,0.1121,4458.3,4458.2,0.2998]
[1756672505561,0.1121,4458.3,4457.8,0.225]
[1756672505855,0.1121,4458.3,4457.4,0.2998]
[1756672506061,3.2078,4457.9,4457.4,0.2021]
[1756672506253,3.2078,4457.9,4457.4,0.5019]
[1756672506455,3.2078,4457.9,4457.5,0.2998]
[1756672506759,3.2078,4457.9,4457.6,0.2021]
[1756672506963,3.2078,4457.9,4457.4,0.5019]
[1756672507159,3.2078,4457.9,4457.4,0.2998]
[1756672507660,3.2078,4457.9,4457.3,0.5248]
[1756672507864,3.2078,4457.9,4457.4,0.3049]
[1756672508368,3.2078,4457.9,4457.8,0.5061]
[1756672509861,3.2078,4457.9,4457.3,0.4262]
[1756672510061,3.2078,4457.9,4457.4,0.2012]
[1756672510362,3.2078,4457.9,4457.6,0.3049]
[1756672510667,3.2078,4457.9,4457.4,0.3049]
[1756672512564,3.2078,4457.9,4457.4,0.5061]
[1756672512766,3.2078,4457.9,4457.3,0.225]
[1756672512964,3.2078,4457.9,4457.4,0.5061]
[1756672513165,3.2078,4457.9,4457.5,0.3049]
[1756672513364,3.2078,4457.9,4457.3,0.225]
[1756672513864,3.2078,4457.9,4457.4,0.2012]
[1756672514062,3.2078,4457.9,4457.5,0.2012]
[1756672514263,3.2078,4457.9,4457.4,0.5061]
[1756672514464,3.2078,4457.9,4457.5,0.2012]
[1756672514659,3.2078,4457.9,4457.3,0.225]
[1756672514860,3.2078,4457.9,4457.4,0.3049]
[1756672515363,3.2078,4457.9,4457.5,0.3049]
[1756672515560,3.2078,4457.9,4457.6,0.3049]
[1756672515761,3.2078,4457.9,4457.4,0.5061]
[1756672516064,3.2078,4457.9,4457.5,0.5061]
[1756672516266,3.2078,4457.9,4457.4,0.5061]
[1756672516465,3.2078,4457.9,4457.5,0.2012]
[1756672516666,3.2078,4457.9,4457.4,0.2012]
[1756672516854,3.2078,4457.9,4457.3,0.225]
[1756672517054,3.2078,4457.9,4457.5,0.3049]
[1756672517254,3.2078,4457.9,4457.6,0.3049]
[1756672517459,3.2078,4457.9,4457.4,0.3049]
[1756672517764,3.2078,4457.9,4457.3,0.225]
[1756672517966,3.2078,4457.9,4457.4,0.3049]
[1756672518158,3.2078,4457.9,4457.5,0.3049]
[1756672518358,3.2078,4457.9,4457.6,0.3049]
[1756672518560,3.2078,4457.9,4457.4,0.3049]
[1756672521168,0.1121,4457.8,4457.4,0.3049]
[1756672521466,0.1121,4457.8,4457.7,0.5061]
[1756672526172,0.1121,4457.8,4457.7,0.3049]
[1756672527472,0.1121,4457.8,4457.7,0.5061]
[1756672536177,3.2078,4457.9,4457.7,0.2012]
[1756672536372,3.2078,4457.9,4457.8,0.5061]
[1756672539070,0.1121,4458.1,4458.0,0.493]
[1756672540276,0.1121,4458.1,4458.0,3.7008]
[1756672540477,0.1121,4458.1,4458.0,4.10453]
[1756672545581,0.1121,4458.1,4458.0,3.7008]
[1756672545885,0.1121,4458.1,4458.0,0.493]
[1756672548985,0.1121,4458.1,4458.0,0.89673]
[1756672549181,0.1121,4458.1,4458.0,0.493]
[1756672550687,0.1121,4458.1,4458.0,0.718]
[1756672557792,0.1121,4458.1,4458.0,0.493]
[1756672557993,0.1121,4458.1,4458.0,0.718]
[1756672559192,3.2078,4458.4,4458.0,0.718]
[1756672559393,3.2078,4458.4,4458.1,0.2963]
[1756672559690,3.2078,4458.4,4458.3,0.493]
[1756672561494,0.1121,4458.6,4458.3,0.1967]
[1756672561692,0.1121,4458.6,4458.0,0.225]
[1756672561693,0.1121,4458.6,4458.5,0.1967]
[1756672562792,0.1121,4458.6,4458.5,0.493]
[1756672562987,0.1121,4458.6,4458.5,0.2963]
[1756672563692,0.7284181,4458.6,4458.5,0.2963]
[1756672568099,0.7284181,4458.6,4458.5,0.493]
[1756672568300,1.0975181,4458.6,4458.5,0.27425752]
[1756672572103,1.0975181,4458.6,4458.5,0.07755752]
[1756672572707,0.3691,4457.5,4457.4,0.4898]
[1756672575004,0.2,4457.5,4457.4,0.4898]
[1756672575194,3.2078,4457.9,4457.5,0.292]
[1756672575503,3.5769,4457.9,4457.8,0.4898]
[1756672575705,4.19276671,4457.9,4457.8,0.4898]